bitfinex-derivatives/quotes_SOLF0:USTF0_20250720
["timestamp","ask_amount","ask_price","bid_price","bid_amount"]
[1753035154087,3.2,180.57,180.54,110.6764]
[1753035154291,3.2,180.57,180.54,113.9264]
[1753035154791,3.2,180.56,180.55,3.25]
[1753035155793,3.2,180.56,180.55,8.7862]
[1753035156088,5.5351,180.59,180.54,105.14]
[1753035156283,5.5351,180.59,180.56,3.25]
[1753035156483,5.5351,180.59,180.54,105.14]
[1753035156484,3.2,180.58,180.57,3.25]
[1753035157588,3.2,180.59,180.57,3.25]
[1753035157787,3.2,180.61,180.58,3.25]
[1753035157990,3.2,180.63,180.58,108.39]
[1753035158195,6.22495154,180.62,180.6,5.5343]
[1753035158498,3.2,180.67,180.6,3.25]
[1753035158686,9.42858556,180.66,180.62,8.7837]
[1753035158882,3.2,180.66,180.63,3.25]
[1753035159081,3.2,180.66,180.64,3.25]
[1753035159283,3.2,180.65,180.64,3.25]
[1753035161290,6.98607098,180.65,180.64,3.25]
[1753035161491,3.2,180.65,180.64,3.25]
[1753035161891,5.5322,180.68,180.64,3.25]
[1753035162095,3.2,180.66,180.65,3.25]
[1753035162296,6.24369158,180.66,180.61,2.69828988]
[1753035162499,3.2,180.67,180.61,2.69828988]
[1753035162793,6.24345728,180.66,180.61,2.69828988]
[1753035162994,3.2,180.64,180.63,3.25]
[1753035163396,3.2,180.63,180.61,3.25]
[1753035163695,3.2,180.62,180.61,3.25]
[1753035164196,5.5332,180.65,180.61,3.25]
[1753035164390,5.65832151,180.64,180.61,3.25]
[1753035164695,3.2,180.62,180.61,3.25]
[1753035167002,5.46026628,180.62,180.59,8.7848]
[1753035167202,3.2,180.61,180.59,8.7848]
[1753035167405,3.2,180.6,180.59,3.25]
[1753035169100,3.2,180.6,180.58,3.25]
[1753035169398,3.2,180.59,180.58,3.25]
[1753035169903,3.2,180.59,180.58,8.7852]
[1753035170204,8.23218988,180.63,180.58,5.5352]
[1753035170506,3.2,180.6,180.59,3.25]
[1753035172606,5.56283546,180.6,180.59,3.25]
[1753035174212,3.2,180.6,180.59,3.25]
[1753035175197,5.5628016,180.6,180.59,3.25]
[1753035176404,2.3628016,180.6,180.59,8.7849]
[1753035176709,5.5628016,180.6,180.59,8.7849]
[1753035177215,5.5628016,180.6,180.56,3.25]
[1753035177410,5.56277261,180.59,180.56,3.25]
[1753035177600,3.2,180.58,180.56,3.25]
[1753035177913,3.2,180.57,180.56,8.7856]
[1753035178411,3.2,180.57,180.55,105.1]
[1753035178412,3.21,180.59,180.57,5.5353]
[1753035178605,3.21,180.59,180.58,3.0]
[1753035178910,5.57268854,180.59,180.58,3.0]
[1753035180405,5.57268854,180.59,180.57,5.5353]
[1753035180607,5.57268854,180.59,180.52,7.33377343]
[1753035180608,2.36229482,180.58,180.52,4.63548355]
[1753035180804,3.21,180.56,180.55,3.0]
[1753035181208,3.21,180.56,180.54,5.5362]
[1753035181509,3.21,180.56,180.52,3.0]
[1753035181710,3.21,180.56,180.53,5.5366]
[1753035182016,3.21,180.56,180.54,3.0]
[1753035182306,3.21,180.56,180.54,8.5364]
[1753035182511,3.21,180.55,180.54,8.5364]
[1753035183413,3.21,180.55,180.54,3.0]
[1753035184912,3.21,180.57,180.55,3.0]
[1753035185107,5.67089163,180.56,180.55,3.0]
[1753035185613,5.67063987,180.56,180.55,3.0]
[1753035186402,3.21,180.56,180.55,3.0]
[1753035187106,3.21,180.58,180.55,3.0]
[1753035187307,2.69828988,180.62,180.55,3.0]
[1753035187502,3.21,180.59,180.55,3.0]
[1753035187706,3.21,180.59,180.57,5.5353]
[1753035187906,3.21,180.59,180.58,3.0]
[1753035188106,5.47168933,180.59,180.58,3.0]
[1753035190918,3.21,180.59,180.58,3.0]
[1753035191918,2.69828988,180.62,180.58,3.0]
[1753035192226,3.21,180.6,180.58,3.0]
[1753035192516,3.21,180.6,180.59,5.5347]
[1753035192720,3.21,180.6,180.59,3.0]
[1753035192915,5.47150133,180.6,180.59,3.0]
[1753035193317,9.36405105,180.6,180.59,3.0]
[1753035193823,11.68865105,180.6,180.57,3.0]
[1753035194018,3.21,180.58,180.53,2.69828988]
[1753035194712,3.21,180.59,180.54,3.0]
[1753035195020,3.21,180.59,180.57,3.0]
[1753035195422,3.21,180.57,180.53,8.5366]
[1753035195624,3.21,180.57,180.54,3.0]
[1753035195823,3.21,180.57,180.52,3.0]
[1753035196018,5.5358,180.57,180.53,3.0]
[1753035196324,3.21,180.56,180.53,3.0]
[1753035196620,3.21,180.54,180.52,3.0]
[1753035197824,3.21,180.54,180.51,3.0]
[1753035198422,3.21,180.54,180.52,3.0]
[1753035198926,3.21,180.53,180.5,105.04]
[1753035199129,3.21,180.53,180.5,108.04]
[1753035199321,3.21,180.53,180.5,113.5776]
[1753035199517,2.66398247,180.52,180.5,108.04]
[1753035199820,2.69828988,180.54,180.5,3.0]
[1753035199821,2.66398247,180.51,180.5,3.0]
[1753035200018,3.21,180.5,180.48,3.0]
[1753035200623,3.21,180.5,180.49,5.538]
[1753035200823,5.87290062,180.5,180.49,8.538]
[1753035201331,2.66290062,180.5,180.48,5.5382]
[1753035201518,3.21,180.49,180.48,8.5382]
[1753035202228,3.21,180.49,180.47,8.5385]
[1753035202428,3.21,180.51,180.47,3.0]
[1753035202623,3.21,180.5,180.49,3.0]
[1753035202927,5.77158918,180.5,180.49,3.0]
[1753035203127,3.21,180.5,180.49,8.538]
[1753035203430,3.21,180.5,180.49,3.0]
[1753035204830,2.69828988,180.55,180.49,3.0]
[1753035205030,3.21,180.52,180.5,5.5374]
[1753035205228,3.21,180.52,180.51,3.0]
[1753035206426,3.21,180.52,180.51,8.5374]
[1753035206631,2.69828988,180.57,180.48,2.69828988]
[1753035206833,3.21,180.55,180.49,3.0]
[1753035207534,3.21,180.55,180.51,5.5373]
[1753035207827,3.21,180.55,180.51,8.5373]
[1753035208032,3.21,180.55,180.47,3.1]
[1753035208228,3.22,180.53,180.49,3.1]
[1753035208436,3.22,180.53,180.48,105.02]
[1753035208634,3.22,180.53,180.5,8.6375]
[1753035209436,3.22,180.53,180.49,5.5379]
[1753035209636,3.22,180.53,180.47,3.1]
[1753035209934,3.22,180.51,180.48,5.5383]
[1753035210232,3.22,180.5,180.49,3.1]
[1753035210534,3.22,180.5,180.49,8.638]
[1753035211437,3.22,180.5,180.49,3.1]
[1753035212040,3.22,180.5,180.49,8.638]
[1753035213042,3.22,180.52,180.51,3.1]
[1753035213234,6.912623,180.52,180.51,3.1]
[1753035213436,3.22,180.52,180.51,3.1]
[1753035214932,3.22,180.52,180.49,5.5379]
[1753035215240,3.22,180.51,180.5,3.1]
[1753035216137,3.22,180.51,180.49,3.1]
[1753035216348,3.22,180.51,180.48,8.6382]
[1753035216949,3.22,180.53,180.48,3.1]
[1753035217143,6.13812711,180.52,180.48,3.1]
[1753035217337,3.22,180.5,180.48,3.1]
[1753035217737,3.22,180.5,180.48,5.5382]
[1753035218045,3.22,180.5,180.48,3.1]
[1753035218237,3.22,180.5,180.49,8.638]
[1753035219144,3.22,180.51,180.49,5.538]
[1753035219345,3.22,180.5,180.49,8.638]
[1753035219938,3.22,180.5,180.49,3.1]
[1753035220537,5.538,180.5,180.47,3.1]
[1753035220842,3.22,180.48,180.47,3.1]
[1753035222744,3.22,180.48,180.47,8.6386]
[1753035223244,3.22,180.49,180.48,5.5383]
[1753035223443,3.22,180.49,180.48,8.6383]
[1753035223944,7.13995543,180.49,180.48,8.6383]
[1753035225046,3.22,180.49,180.48,8.6383]
[1753035226446,3.22,180.51,180.49,3.1]
[1753035226947,3.22,180.5,180.48,5.5383]
[1753035227147,3.22,180.49,180.48,5.5383]
[1753035227546,3.22,180.49,180.48,8.6383]
[1753035228945,10.11589019,180.49,180.48,8.6383]
[1753035229151,10.11596078,180.49,180.48,8.6383]
[1753035230049,6.89596078,180.49,180.45,2.69828988]
[1753035230249,3.22,180.47,180.44,3.1]
[1753035230552,3.22,180.46,180.44,3.1]
[1753035230753,3.22,180.46,180.45,8.6393]
[1753035233047,3.22,180.5,180.49,5.538]
[1753035233246,2.53807069,180.5,180.48,3.1]
[1753035233551,5.75807069,180.49,180.48,8.6382]
[1753035233950,5.75807069,180.49,180.48,5.5382]
[1753035234648,5.75807069,180.49,180.48,8.6382]
[1753035235152,9.44377516,180.49,180.48,8.6382]
[1753035235353,3.22,180.49,180.48,8.6382]
[1753035235654,5.7435542,180.49,180.48,8.6382]
[1753035236046,5.7435542,180.49,180.48,5.5382]
[1753035237152,9.43227804,180.49,180.48,5.5382]
[1753035238254,2.97,180.48,180.43,3.23]
[1753035238451,2.97,180.46,180.42,3.23]
[1753035238849,2.97,180.46,180.45,3.23]
[1753035239052,5.59932293,180.46,180.45,3.23]
[1753035239256,9.61618744,180.46,180.45,3.23]
[1753035239855,9.61618744,180.46,180.45,8.7693]
[1753035241352,9.61899447,180.46,180.45,8.7693]
[1753035242552,6.64899447,180.46,180.45,8.7693]
[1753035242748,4.01686451,180.46,180.45,11.46758988]
[1753035242955,2.97,180.5,180.49,5.538]
[1753035243157,6.65497303,180.5,180.49,3.23]
[1753035243553,6.65497303,180.5,180.49,8.768]
[1753035243749,9.62553352,180.5,180.49,8.768]
[1753035244558,6.65553352,180.5,180.49,8.768]
[1753035244955,4.02207118,180.5,180.49,8.768]
[1753035245452,6.99207118,180.5,180.49,8.768]
[1753035245755,2.97,180.5,180.49,8.768]
[1753035247159,2.69828988,180.55,180.52,5.537]
[1753035247355,2.28594072,180.54,180.52,3.23]
[1753035247564,2.28594072,180.53,180.49,3.23]
[1753035247765,156.38730196,180.57,180.52,3.23]
[1753035247959,2.286358,180.56,180.54,3.23]
[1753035248159,156.38730196,180.57,180.54,3.23]
[1753035248356,156.38730196,180.57,180.56,5.5359]
[1753035248661,156.38730196,180.57,180.56,8.7659]
[1753035249061,2.97,180.59,180.58,5.5353]
[1753035249358,2.69828988,180.65,180.58,3.23]
[1753035249359,2.97,180.63,180.58,3.23]
[1753035249559,2.97,180.61,180.6,5.5345]
[1753035249762,2.2813944,180.61,180.6,8.7645]
[1753035249957,2.97,180.63,180.6,3.23]
[1753035250264,146.15799302,180.67,180.61,3.23]
[1753035250462,2.97,180.63,180.59,3.23]
[1753035250662,2.97,180.61,180.59,3.23]
[1753035250864,2.97,180.59,180.57,3.23]
[1753035251061,2.97,180.58,180.57,3.23]
[1753035251864,2.97,180.58,180.57,8.7656]
[1753035252257,8.23228988,180.63,180.57,3.23]
[1753035252459,2.27627558,180.62,180.59,5.5348]
[1753035252659,8.23228988,180.63,180.59,5.5348]
[1753035252866,2.27627558,180.62,180.59,5.5348]
[1753035253065,2.97,180.62,180.59,5.5348]
[1753035253668,2.97,180.62,180.6,5.5347]
[1753035254666,2.97,180.62,180.6,8.7647]
[1753035256170,2.97,180.62,180.6,5.5347]
[1753035258972,2.97,180.62,180.61,5.5344]
[1753035259571,2.97,180.62,180.61,8.7644]
[1753035259780,2.97,180.62,180.61,3.23]
[1753035259979,2.97,180.62,180.6,5.5346]
[1753035260182,2.97,180.62,180.6,8.7646]
[1753035260879,2.97,180.62,180.61,5.5344]
[1753035261081,2.97,180.62,180.61,8.7644]
[1753035261387,2.97,180.64,180.63,3.23]
[1753035261586,2.97,180.64,180.6,2.69828988]
[1753035261783,5.5332,180.65,180.61,3.23]
[1753035262084,2.97,180.64,180.62,3.23]
[1753035262483,2.97,180.64,180.58,2.69828988]
[1753035262484,2.97,180.63,180.58,2.69828988]
[1753035262687,2.97,180.63,180.6,2.69828988]
[1753035263184,2.97,180.63,180.62,3.23]
[1753035263582,2.97,180.63,180.62,8.7641]
[1753035263877,2.97,180.63,180.62,3.23]
[1753035264786,8.5032,180.65,180.62,3.23]
[1753035264985,2.97,180.64,180.62,8.7639]
[1753035265188,2.97,180.64,180.63,3.23]
[1753035265785,2.97,180.65,180.64,3.23]
[1753035266286,8.5031,180.65,180.64,3.23]
[1753035267184,8.5031,180.65,180.62,3.23]
[1753035267388,2.97,180.64,180.63,3.23]
[1753035268084,3.28,180.65,180.63,5.5336]
[1753035268287,3.28,180.65,180.64,3.14]
[1753035268581,3.28,180.65,180.64,8.6734]
[1753035269182,3.28,180.65,180.64,3.14]
[1753035270087,149.43799302,180.67,180.64,8.6735]
[1753035270289,146.15799302,180.67,180.63,3.14]
[1753035270482,3.28,180.66,180.63,3.14]
[1753035270687,3.28,180.66,180.63,8.6735]
[1753035270887,3.28,180.66,180.64,3.14]
[1753035271787,151.69059302,180.67,180.63,5.5336]
[1753035271984,3.28,180.65,180.63,5.5336]
[1753035272495,3.28,180.65,180.64,8.6735]
[1753035273694,3.28,180.65,180.64,3.14]
[1753035274489,3.28,180.65,180.64,8.6735]
[1753035274898,5.5335,180.64,180.62,3.14]
[1753035275095,3.28,180.66,180.62,3.14]
[1753035275690,5.5333,180.65,180.63,5.5336]
[1753035275988,3.28,180.64,180.63,8.6736]
[1753035279094,3.28,180.66,180.65,8.673]
[1753035280894,3.28,180.66,180.64,5.5333]
[1753035281095,3.28,180.66,180.64,8.6733]
[1753035281491,8.8129,180.66,180.64,8.6733]
[1753035281686,3.28,180.65,180.63,8.6738]
[1753035281892,3.28,180.65,180.59,2.69828988]
[1753035282088,3.28,180.65,180.54,2.69828988]
[1753035282089,5.5337,180.64,180.6,3.14]
[1753035282390,3.28,180.63,180.57,2.69828988]
[1753035282591,3.28,180.64,180.58,3.14]
[1753035283190,8.8137,180.64,180.61,5.5342]
[1753035283385,2.69828988,180.62,180.56,3.14]
[1753035283592,3.28,180.61,180.57,3.14]
[1753035283992,3.28,180.61,180.53,2.69828988]
[1753035283993,3.28,180.61,180.54,3.14]
[1753035284194,3.28,180.59,180.54,3.14]
[1753035284594,3.28,180.58,180.56,8.6757]
[1753035285389,3.28,180.57,180.56,8.6757]
[1753035288389,7.00410478,180.57,180.56,8.6757]
[1753035289300,7.00410478,180.57,180.56,3.14]
[1753035289496,7.00410478,180.57,180.54,3.14]
[1753035289800,3.28,180.56,180.55,5.5362]
[1753035289997,3.28,180.56,180.55,8.6762]
[1753035290904,3.28,180.58,180.56,5.5358]
[1753035291105,3.28,180.58,180.57,3.14]
[1753035291300,5.65685068,180.58,180.57,3.14]
[1753035291606,3.28,180.57,180.56,8.6758]
[1753035291794,9.38529486,180.57,180.56,8.6758]
[1753035292000,9.38529486,180.57,180.56,3.14]
[1753035292205,3.28,180.56,180.53,3.14]
[1753035292399,3.72943073,180.55,180.51,3.14]
[1753035292704,3.28,180.53,180.51,3.14]
[1753035293004,3.28,180.53,180.52,8.6772]
[1753035293208,3.28,180.53,180.52,3.14]
[1753035293603,3.28,180.53,180.52,8.6772]
[1753035294406,3.28,180.56,180.55,3.14]
[1753035294708,3.28,180.59,180.55,3.14]
[1753035294903,6.10416379,180.58,180.55,3.14]
[1753035295105,3.28,180.59,180.58,3.14]
[1753035295301,9.39164119,180.59,180.58,3.14]
[1753035295505,9.39164119,180.59,180.58,8.6753]
[1753035295705,3.72795661,180.59,180.58,8.6753]
[1753035295907,7.00795661,180.61,180.58,3.14]
[1753035296106,6.11183659,180.6,180.59,8.675]
[1753035296508,8.8131,180.66,180.62,5.534]
[1753035296705,6.13938735,180.65,180.63,3.14]
[1753035296905,9.41938735,180.64,180.63,3.14]
[1753035297102,5.66433524,180.64,180.63,3.14]
[1753035298212,5.66433524,180.64,180.63,8.6738]
[1753035298417,2.38433524,180.64,180.63,8.6738]
[1753035298618,2.98,180.68,180.63,3.14]
[1753035298913,2.38492377,180.67,180.64,2.69828988]
[1753035299107,2.98,180.68,180.67,5.5326]
[1753035299409,2.98,180.68,180.58,4.64253557]
[1753035299410,2.98,180.66,180.65,3.25]
[1753035299713,2.98,180.66,180.65,8.783]
[1753035300315,2.98,180.66,180.65,5.533]
[1753035300816,2.38325581,180.66,180.64,5.5334]
[1753035301016,2.98,180.65,180.64,8.7834]
[1753035301211,5.67828988,180.65,180.58,3.25]
[1753035301411,5.36214777,180.64,180.58,3.25]
[1753035301613,2.98,180.62,180.6,5.5345]
[1753035302812,2.98,180.62,180.56,3.25]
[1753035303816,5.5344,180.61,180.58,5.5353]
[1753035304121,2.98,180.6,180.55,2.69828988]
[1753035304318,2.98,180.6,180.56,3.25]
[1753035304517,2.98,180.6,180.57,5.5354]
[1753035304816,2.98,180.6,180.57,3.25]
[1753035305012,2.98,180.6,180.58,5.5351]
[1753035305411,2.98,180.6,180.57,3.25]
[1753035306106,2.98,180.6,180.55,3.25]
[1753035306328,2.98,180.6,180.53,3.25]
[1753035306712,2.98,180.59,180.56,5.5357]
[1753035307016,2.98,180.59,180.56,8.7857]
[1753035307221,3.75989769,180.58,180.56,8.7857]
[1753035307415,2.98,180.57,180.56,8.7857]
[1753035308521,6.90199163,180.57,180.56,8.7857]
[1753035309225,6.90199163,180.57,180.55,5.5361]
[1753035309421,2.98,180.54,180.53,3.25]
[1753035311123,2.98,180.54,180.53,8.7868]
[1753035312321,7.06350219,180.54,180.53,8.7868]
[1753035312518,2.98,180.54,180.53,8.7868]
[1753035313328,5.5354,180.58,180.55,5.5361]
[1753035313525,2.98,180.56,180.55,8.7861]
[1753035313726,7.06344067,180.56,180.55,8.7861]
[1753035314328,4.08344067,180.56,180.55,8.7861]
[1753035314527,6.67280861,180.56,180.55,8.7861]
[1753035315028,9.65280861,180.56,180.55,8.7861]
[1753035315829,6.67280861,180.56,180.55,8.7861]
[1753035316329,6.67280861,180.56,180.55,11.48438988]
[1753035316533,2.98,180.6,180.59,8.785]
[1753035316730,9.55957946,180.6,180.59,5.535]
[1753035317926,9.55957946,180.6,180.59,8.785]
[1753035321234,9.2166993,180.6,180.59,8.785]
[1753035321639,6.2366993,180.6,180.59,8.785]
[1753035321825,3.98946921,180.6,180.59,8.785]
[1753035322031,3.67876118,180.6,180.57,2.69828988]
[1753035322235,2.98,180.61,180.57,2.69828988]
[1753035322432,3.6792019,180.6,180.57,2.69828988]
[1753035322627,170.76655334,180.64,180.61,5.5344]
[1753035322834,5.92697383,180.63,180.61,8.7844]
[1753035323137,2.98,180.61,180.56,3.25]
[1753035323336,170.76655334,180.64,180.56,3.25]
[1753035323337,2.98,180.59,180.56,3.25]
[1753035323636,2.98,180.59,180.58,5.5353]
[1753035323836,2.98,180.59,180.58,8.7853]
[1753035324037,2.98,180.59,180.58,3.25]
[1753035324236,2.98,180.59,180.55,2.69828988]
[1753035324237,6.65954051,180.59,180.57,8.7855]
[1753035324436,2.98,180.59,180.57,3.25]
[1753035324942,2.98,180.59,180.57,8.7854]
[1753035325439,6.82471174,180.58,180.57,8.7854]
[1753035325637,2.98,180.57,180.56,5.5358]
[1753035325834,3.84466572,180.57,180.56,5.5358]
[1753035326134,6.82466572,180.57,180.56,5.5358]
[1753035326528,6.82466572,180.57,180.55,5.5361]
[1753035326529,2.98,180.56,180.55,5.5361]
[1753035326929,2.98,180.56,180.55,8.7861]
[1753035328439,7.14040731,180.56,180.55,8.7861]
[1753035328837,4.16040731,180.56,180.55,11.48438988]
[1753035329235,3.26,180.61,180.6,5.5347]
[1753035329430,3.26,180.6,180.54,3.06]
[1753035329630,3.26,180.55,180.47,3.06]
[1753035329838,3.26,180.53,180.47,3.06]
[1753035330040,3.26,180.53,180.48,5.5383]
[1753035330436,3.26,180.53,180.47,3.06]
[1753035330740,3.26,180.5,180.45,3.06]
[1753035331136,3.26,180.5,180.43,106.91828988]
[1753035331337,3.26,180.5,180.46,3.06]
[1753035331537,3.26,180.49,180.46,3.06]
[1753035331935,3.26,180.49,180.43,106.91828988]
[1753035331936,6.13911144,180.57,180.43,106.91828988]
[1753035332244,3.26,180.55,180.48,3.06]
[1753035332538,3.26,180.52,180.48,3.06]
[1753035332749,3.26,180.52,180.49,3.06]
[1753035333841,3.26,180.52,180.51,5.5375]
[1753035334040,3.26,180.52,180.51,8.5975]
[1753035337948,3.26,180.52,180.5,5.5377]
[1753035338133,3.26,180.52,180.42,4.64999987]
[1753035338134,3.26,180.51,180.47,3.06]
[1753035338333,3.26,180.51,180.48,3.06]
[1753035338547,3.26,180.5,180.49,3.06]
[1753035339242,3.26,180.53,180.47,3.06]
[1753035339442,6.0938941,180.52,180.48,2.69828988]
[1753035339643,3.26,180.52,180.49,3.06]
[1753035339844,3.26,180.52,180.5,8.5975]
[1753035340142,6.9943205,180.51,180.5,8.5975]
[1753035340441,3.26,180.51,180.5,8.5975]
[1753035341337,3.73374334,180.51,180.5,8.5975]
[1753035342134,5.5368,180.54,180.51,5.5375]
[1753035342338,3.26,180.52,180.51,8.5975]
[1753035342536,9.35285022,180.52,180.51,8.5975]
[1753035342745,9.35285022,180.52,180.51,3.06]
[1753035343434,3.26,180.52,180.51,3.06]
[1753035343946,6.99389673,180.52,180.51,3.06]
[1753035344144,9.35469265,180.52,180.51,8.5975]
[1753035344743,6.99389673,180.52,180.5,5.5376]
[1753035345038,3.26,180.5,180.43,3.06]
[1753035345243,3.26,180.48,180.46,5.5389]
[1753035345443,3.26,180.48,180.4,2.69828988]
[1753035345646,3.26,180.48,180.45,3.06]
[1753035345848,3.26,180.49,180.41,3.06]
[1753035346145,2.69828988,180.5,180.43,3.06]
[1753035346342,2.69828988,180.48,180.41,3.06]
[1753035346538,3.26,180.47,180.42,5.54]
[1753035346738,5.5388,180.47,180.42,3.06]
[1753035346940,3.26,180.46,180.43,3.06]
[1753035347146,3.26,180.46,180.43,8.5997]
[1753035348050,5.5384,180.48,180.44,5.5395]
[1753035348350,3.26,180.48,180.43,3.06]
[1753035348948,5.95828988,180.47,180.4,3.06]
[1753035349145,3.26,180.47,180.4,3.06]
[1753035349352,3.26,180.47,180.4,5.75828988]
[1753035349548,3.26,180.47,180.43,5.5396]
[1753035349844,3.26,180.47,180.43,8.5996]
[1753035350049,3.26,180.45,180.4,3.06]
[1753035350252,3.26,180.44,180.4,8.6008]
[1753035350752,3.26,180.44,180.41,5.5405]
[1753035351152,3.26,180.44,180.4,3.06]
[1753035351349,3.26,180.44,180.38,3.06]
[1753035351543,8.7999,180.44,180.4,5.5408]
[1753035351848,3.26,180.43,180.4,8.6008]
[1753035352054,3.26,180.43,180.38,3.06]
[1753035352249,3.26,180.43,180.37,3.06]
[1753035352451,2.69828988,180.46,180.36,108.31828988]
[1753035352648,3.26,180.43,180.4,3.06]
[1753035352849,3.26,180.43,180.42,3.06]
[1753035353351,3.26,180.43,180.42,8.6002]
[1753035353555,3.26,180.46,180.43,3.06]
[1753035354061,8.7992,180.46,180.43,3.06]
[1753035354261,3.26,180.44,180.43,3.06]
[1753035355065,6.13911144,180.57,180.43,3.06]
[1753035355267,3.26,180.45,180.42,2.69828988]
[1753035355569,3.26,180.47,180.43,3.06]
[1753035355955,3.26,180.52,180.45,3.06]
[1753035356160,3.26,180.5,180.45,3.06]
[1753035356362,6.98560573,180.49,180.45,3.06]
[1753035356565,3.26,180.49,180.45,3.06]
[1753035356853,3.26,180.48,180.47,3.06]
[1753035357566,3.26,180.48,180.47,8.5987]
[1753035358660,2.69828988,180.55,180.46,2.69828988]
[1753035358866,3.27,180.52,180.48,2.69828988]
[1753035359162,3.27,180.52,180.49,2.95]
[1753035359364,3.27,180.52,180.5,5.5378]
[1753035359561,3.27,180.52,180.51,2.95]
[1753035359767,3.27,180.51,180.5,8.4878]
[1753035360666,3.27,180.51,180.5,2.95]
[1753035361863,3.27,180.53,180.5,8.4876]
[1753035362069,7.22134786,180.52,180.51,2.95]
[1753035362361,3.95134786,180.52,180.5,5.5376]
[1753035362561,3.27,180.5,180.49,2.95]
[1753035362770,3.27,180.56,180.49,2.95]
[1753035362965,7.22205447,180.55,180.52,5.537]
[1753035363160,3.27,180.54,180.53,2.95]
[1753035363364,5.5352,180.59,180.53,2.95]
[1753035363671,3.95384611,180.58,180.55,2.95]
[1753035363862,3.27,180.59,180.55,2.95]
[1753035364063,173.46484322,180.64,180.57,2.95]
[1753035364262,3.27,180.62,180.57,2.95]
[1753035364467,3.27,180.6,180.57,2.95]
[1753035364667,3.27,180.59,180.57,8.4856]
[1753035364869,3.27,180.59,180.58,2.95]
[1753035365372,170.76655334,180.64,180.58,5.64828988]
[1753035365567,9.5369663,180.63,180.58,2.69828988]
[1753035365762,6.2669663,180.62,180.6,5.5345]
[1753035365962,3.27,180.63,180.61,2.95]
[1753035366162,3.27,180.63,180.62,2.95]
[1753035367669,3.27,180.66,180.62,5.64828988]
[1753035367971,3.27,180.66,180.62,2.69828988]
[1753035368373,3.27,180.71,180.65,2.95]
[1753035368565,0.96352184,180.72,180.65,2.95]
[1753035368566,3.27,180.69,180.67,5.5323]
[1753035368765,3.27,180.71,180.67,2.95]
[1753035368966,3.27,180.7,180.67,2.95]
[1753035369267,3.27,180.7,180.67,5.5325]
[1753035369667,3.27,180.7,180.69,2.95]
[1753035369870,3.27,180.68,180.67,2.95]
[1753035370272,3.27,180.7,180.68,2.95]
[1753035370472,3.27,180.7,180.69,2.95]
[1753035373271,8.8017,180.7,180.67,2.95]
[1753035373471,3.27,180.73,180.64,2.95]
[1753035373675,3.27,180.71,180.64,2.95]
[1753035373871,3.27,180.67,180.64,8.4832]